bitfinex/quotes_BTCUSD_20240617
["timestamp","ask_amount","ask_price","bid_price","bid_amount"]
[1718645808111,0.00275,66350.0,66342.0,0.150733]
[1718645808321,0.00275,66350.0,66341.0,0.1]
[1718645808531,0.00275,66350.0,66349.0,0.650254]
[1718645808756,0.00275,66350.0,66349.0,1.51585488]
[1718645809458,0.00275,66350.0,66349.0,0.25272888]
[1718645809688,0.00275,66350.0,66338.0,0.301484]
[1718645809689,0.00275,66350.0,66343.0,0.2981]
[1718645809922,0.00275,66350.0,66341.0,0.452206]
[1718645809923,0.00275,66350.0,66349.0,1.06169]
[1718645810168,0.00275,66350.0,66349.0,1.51585488]
[1718645810384,0.00275,66350.0,66349.0,1.81729088]
[1718645811641,0.00275,66350.0,66349.0,1.26371888]
[1718645811842,0.00275,66350.0,66349.0,1.01631888]
[1718645811990,0.00275,66350.0,66349.0,1.43025488]
[1718645812371,0.00275,66350.0,66349.0,1.42765488]
[1718645812577,0.00275,66350.0,66349.0,1.87409088]
[1718645812796,0.00275,66350.0,66349.0,2.29552688]
[1718645813200,0.00275,66350.0,66349.0,2.29752688]
[1718645814427,0.0131626,66355.0,66353.0,1.689799]
[1718645814643,0.0131626,66355.0,66353.0,2.03792788]
[1718645814861,0.0131626,66355.0,66353.0,1.73850988]
[1718645815078,0.1218,66382.0,66353.0,1.73850988]
[1718645815079,0.04489256,66394.0,66383.0,0.24804]
[1718645815343,0.1126403,66400.0,66383.0,1.01333088]
[1718645815344,0.0004089,66400.0,66383.0,1.01333088]
[1718645815561,0.0004089,66400.0,66383.0,1.57571188]
[1718645816432,0.0004089,66400.0,66383.0,1.01333088]
[1718645816881,0.0004089,66400.0,66383.0,0.40076888]
[1718645817094,0.0004089,66400.0,66381.0,0.0974]
[1718645817317,0.0004089,66400.0,66383.0,1.409283]
[1718645817522,0.0004089,66400.0,66383.0,1.56201188]
[1718645817757,0.0004089,66400.0,66383.0,1.86329288]
[1718645818018,0.12,66399.0,66383.0,1.00333088]
[1718645818240,0.12,66399.0,66383.0,0.71204988]
[1718645818452,0.12,66399.0,66383.0,1.01333088]
[1718645818658,0.0004089,66400.0,66383.0,1.31461188]
[1718645818879,0.0004089,66400.0,66383.0,1.61589288]
[1718645819344,0.0004089,66400.0,66383.0,1.86329288]
[1718645819813,0.0004089,66400.0,66383.0,1.70142091]
[1718645820019,0.0004089,66400.0,66383.0,1.96329288]
[1718645820463,0.0004089,66400.0,66399.0,0.549213]
[1718645820708,0.0004089,66400.0,66396.0,0.0974]
[1718645820927,0.0004089,66400.0,66391.0,0.01]
[1718645820928,0.0004089,66400.0,66391.0,0.0974]
[1718645821132,0.0004089,66400.0,66388.0,0.398656]
[1718645821363,0.0004089,66400.0,66399.0,0.62514372]
[1718645821617,0.0004089,66400.0,66399.0,1.3423816]
[1718645821858,0.0004089,66400.0,66399.0,0.78643399]
[1718645822092,0.0004089,66400.0,66399.0,1.70006099]
[1718645822337,0.0004089,66400.0,66399.0,1.73829107]
[1718645822804,0.0004089,66400.0,66399.0,0.78643399]
[1718645823028,0.0004089,66400.0,66398.0,0.0974]
[1718645823276,0.0004089,66400.0,66399.0,0.82895272]
[1718645823534,0.0004089,66400.0,66399.0,0.7878726]
[1718645823739,0.0004089,66400.0,66399.0,1.3802906]
[1718645823940,0.0004089,66400.0,66399.0,1.3902906]
[1718645824691,0.0004089,66400.0,66392.0,0.37716972]
[1718645824692,0.0004089,66400.0,66396.0,0.0974]
[1718645824937,0.0004089,66400.0,66399.0,1.85905988]
[1718645825191,0.0004089,66400.0,66399.0,2.26026888]
[1718645825459,0.0004089,66400.0,66399.0,2.36515625]
[1718645825655,0.0004089,66400.0,66399.0,2.04944725]
[1718645826087,0.0014089,66400.0,66399.0,2.05844725]
[1718645826307,0.0014089,66400.0,66399.0,1.75723825]
[1718645826524,0.0014089,66400.0,66399.0,2.0531375]
[1718645826738,0.0004089,66400.0,66399.0,2.0441375]
[1718645826948,0.0004089,66400.0,66399.0,2.30425223]
[1718645827167,0.00853,66414.0,66399.0,2.30425223]
[1718645827168,0.1772,66435.0,66399.0,2.18255988]
[1718645827382,0.01,66434.0,66412.0,0.17333072]
[1718645827590,0.01,66433.0,66419.0,0.0974]
[1718645827804,0.06405913,66435.0,66419.0,0.0974]
[1718645827805,0.01,66432.0,66419.0,0.0974]
[1718645828023,0.06405913,66435.0,66420.0,0.15272888]
[1718645828235,0.01,66434.0,66420.0,0.15272888]
[1718645828464,0.06405913,66435.0,66420.0,0.15272888]
[1718645828685,0.01,66426.0,66409.0,0.0974]
[1718645828903,0.01,66426.0,66411.0,0.45558432]
[1718645828904,0.301088,66426.0,66411.0,0.45558432]
[1718645829117,0.06405913,66435.0,66409.0,0.0974]
[1718645829118,0.06405913,66435.0,66412.0,0.15272888]
[1718645829326,0.15272888,66434.0,66412.0,0.15272888]
[1718645829562,0.150551,66423.0,66412.0,0.15272888]
[1718645829769,0.15053,66432.0,66415.0,0.150568]
[1718645829998,0.150537,66429.0,66412.0,0.40070288]
[1718645830203,0.0891,66433.0,66412.0,0.15272888]
[1718645830408,0.30106,66432.0,66412.0,0.25012888]
[1718645830621,0.11996707,66433.0,66414.0,0.15057]
[1718645830826,0.150535,66430.0,66414.0,0.0974]
[1718645831029,0.06259792,66430.0,66412.0,0.15272888]
[1718645831243,0.06259792,66430.0,66409.0,0.0974]
[1718645831419,0.150554,66421.0,66420.0,0.000935]
[1718645831658,0.451663,66421.0,66420.0,0.000935]
[1718645832331,0.301104,66423.0,66410.0,0.15272888]
[1718645832332,0.006625,66411.0,66410.0,0.15272888]
[1718645832571,0.006625,66411.0,66399.0,0.2649]
[1718645832783,0.150591,66406.0,66400.0,0.15272888]
[1718645833003,0.006625,66411.0,66400.0,0.15272888]
[1718645833004,0.006625,66411.0,66406.0,0.0974]
[1718645833229,0.006625,66411.0,66405.0,0.24799]
[1718645833451,0.006625,66411.0,66406.0,0.150588]
[1718645833659,0.301118,66420.0,66406.0,0.247987]
[1718645833660,0.15056,66419.0,66406.0,0.247987]
[1718645833871,0.150567,66416.0,66403.0,0.25012888]
[1718645834079,0.301147,66413.0,66399.0,0.0175]
[1718645834295,0.2541,66423.0,66400.0,0.15272888]
[1718645834498,0.19925093,66422.0,66399.0,0.0175]
[1718645834705,0.150602,66400.0,66399.0,0.17022888]
[1718645834914,0.301168,66408.0,66399.0,0.17022888]
[1718645835132,0.150597,66403.0,66399.0,0.17022888]
[1718645835337,0.150598,66402.0,66399.0,0.17022888]
[1718645835547,0.150602,66400.0,66399.0,0.17022888]
[1718645835982,0.451806,66400.0,66399.0,0.0175]
[1718645836434,0.2563,66404.0,66399.0,0.0175]
[1718645836851,0.451806,66400.0,66399.0,0.0175]
[1718645837062,0.150602,66400.0,66399.0,0.0175]
[1718645837318,0.2563,66404.0,66399.0,0.0175]
[1718645837541,0.451806,66400.0,66399.0,0.0085]
[1718645837752,0.75301,66400.0,66399.0,0.0085]
[1718645838178,0.2563,66404.0,66399.0,0.0085]
[1718645838405,0.150602,66400.0,66399.0,0.0085]
[1718645839463,0.2563,66404.0,66399.0,0.0085]
[1718645839698,0.150596,66403.0,66399.0,0.0085]
[1718645839901,0.150602,66400.0,66399.0,0.0085]
[1718645840106,0.451806,66400.0,66399.0,0.0085]
[1718645840536,0.150602,66400.0,66399.0,0.0085]
[1718645840963,0.75301,66400.0,66399.0,0.0085]
[1718645841905,0.451806,66400.0,66399.0,0.0085]
[1718645842746,0.75301,66400.0,66399.0,0.0085]
[1718645842949,0.451806,66400.0,66399.0,0.0085]
[1718645843672,0.2563,66404.0,66399.0,0.0085]
[1718645843673,0.55749,66404.0,66399.0,0.0085]
[1718645843871,0.75301,66400.0,66399.0,0.0085]
[1718645844104,1.054214,66400.0,66399.0,0.0085]
[1718645844878,0.75301,66400.0,66399.0,0.0085]
[1718645845107,1.054214,66400.0,66399.0,0.0085]
[1718645845313,0.2563,66404.0,66399.0,0.0085]
[1718645845518,0.20852054,66410.0,66399.0,0.0085]
[1718645845519,0.20852054,66410.0,66406.0,0.0974]
[1718645845749,0.20852054,66410.0,66409.0,0.0974]
[1718645846001,0.1672,66421.0,66412.0,0.0974]
[1718645846453,0.317755,66421.0,66410.0,0.247978]
[1718645846659,0.468312,66421.0,66410.0,0.0974]
[1718645846857,0.150562,66418.0,66412.0,0.0974]
[1718645847060,0.150558,66420.0,66413.0,0.0974]
[1718645847269,0.468312,66421.0,66407.0,0.5900906]
[1718645847270,0.1672,66421.0,66410.0,0.0974]
[1718645847670,0.150559,66419.0,66410.0,0.0974]
[1718645848297,0.150559,66419.0,66409.0,0.15058]
[1718645848500,0.301099,66424.0,66410.0,0.3260596]
[1718645848739,0.30108,66428.0,66419.0,0.150558]
[1718645848740,0.15054,66428.0,66419.0,0.150558]
[1718645848944,0.301093,66425.0,66413.0,0.1338]
[1718645849199,0.301086,66427.0,66416.0,0.0974]
[1718645849406,0.1672,66429.0,66417.0,0.0974]
[1718645849606,0.18850482,66428.0,66417.0,0.0974]
[1718645849817,0.33904382,66428.0,66419.0,0.150558]
[1718645849987,0.317736,66429.0,66419.0,0.150558]
[1718645850159,0.18678364,66428.0,66419.0,0.150558]
[1718645850363,0.468277,66429.0,66417.0,0.398524]
[1718645850572,0.150544,66426.0,66417.0,0.0974]
[1718645850748,0.468277,66429.0,66414.0,0.0974]
[1718645850953,0.468277,66429.0,66413.0,0.28652888]
[1718645850954,0.20520276,66428.0,66415.0,0.15272888]
[1718645851161,0.20852054,66430.0,66429.0,0.0974]
[1718645851362,0.00018267,66436.0,66429.0,0.0974]
[1718645851363,0.00018267,66436.0,66435.0,0.150523]
[1718645851568,0.00018267,66436.0,66435.0,0.0974]
[1718645851847,0.00018267,66436.0,66430.0,0.3064]
[1718645852050,0.00018267,66436.0,66431.0,0.15272888]
[1718645852256,0.00018267,66436.0,66424.0,0.015]
[1718645852257,0.15053,66432.0,66425.0,0.1347]
[1718645852427,0.00018267,66436.0,66429.0,0.150536]
[1718645852680,0.00018267,66436.0,66431.0,0.0974]
[1718645852855,0.00018267,66436.0,66434.0,0.0974]
[1718645853100,0.00018267,66436.0,66432.0,0.15272888]
[1718645853101,0.00018267,66436.0,66432.0,0.0974]
[1718645853323,0.00018267,66436.0,66434.0,0.0974]
[1718645853529,0.00018267,66436.0,66435.0,0.45377488]
[1718645853737,0.00018267,66436.0,66435.0,0.30325188]
[1718645853909,0.00018267,66436.0,66435.0,0.70169788]
[1718645854123,0.00018267,66436.0,66435.0,1.62578988]
[1718645854738,0.0005007,66447.0,66446.0,0.856994]
[1718645854941,0.0005007,66447.0,66446.0,1.52351888]
[1718645855146,0.0005007,66447.0,66446.0,1.82451488]
[1718645855362,0.0005007,66447.0,66446.0,1.86312942]
[1718645855579,0.01,66456.0,66455.0,1.473842]
[1718645855792,0.01,66456.0,66455.0,1.9061523]
[1718645855997,0.01,66456.0,66455.0,2.5071073]
[1718645856651,0.00018294,66463.0,66462.0,1.16563]
[1718645856858,0.00018294,66463.0,66462.0,1.64685888]
[1718645857032,0.00018294,66463.0,66462.0,1.68758233]
[1718645857236,0.00018294,66463.0,66462.0,1.58665933]
[1718645857438,0.00018294,66463.0,66462.0,0.84721288]
[1718645857646,0.5,66477.0,66466.0,1.16113722]
[1718645857838,0.5,66477.0,66466.0,1.3138661]
[1718645858049,0.5,66477.0,66466.0,1.35456155]
[1718645858207,0.5,66477.0,66470.0,0.864617]
[1718645858410,0.5,66477.0,66470.0,0.71645888]
[1718645859093,0.5,66477.0,66470.0,0.25012888]
[1718645859294,0.5,66477.0,66470.0,0.70145888]
[1718645859432,0.5,66477.0,66470.0,1.01734588]
[1718645859635,0.5,66477.0,66470.0,0.71645888]
[1718645859860,0.5,66477.0,66470.0,0.15272888]
[1718645860088,0.5,66477.0,66470.0,0.70145888]
[1718645860284,0.5,66477.0,66470.0,1.00234588]
[1718645860490,0.5,66477.0,66470.0,1.01734588]
[1718645860691,0.5,66477.0,66470.0,1.31823288]
[1718645861560,0.5,66477.0,66470.0,1.01734588]
[1718645861783,0.5,66477.0,66470.0,0.41557188]
[1718645861984,0.5,66477.0,66470.0,0.71645888]
[1718645862217,0.5,66477.0,66470.0,0.26512888]
[1718645862388,0.5,66477.0,66470.0,0.71645888]
[1718645862582,0.5,66477.0,66470.0,1.01734588]
[1718645862786,0.5,66477.0,66470.0,0.41557188]
[1718645862988,0.5,66477.0,66470.0,0.25012888]
[1718645863235,0.5,66477.0,66470.0,0.26512888]
[1718645863449,0.5,66477.0,66470.0,0.70145888]
[1718645863664,0.5,66477.0,66470.0,1.01734588]
[1718645863901,0.5,66477.0,66470.0,0.41557188]
[1718645864075,0.5,66477.0,66470.0,0.41057188]
[1718645864293,0.5,66477.0,66470.0,1.01234588]
[1718645864512,0.02195773,66471.0,66470.0,0.71145888]
[1718645864717,0.02195773,66471.0,66470.0,0.44861588]
[1718645864948,0.02195773,66471.0,66470.0,0.14772888]
[1718645865149,0.00125773,66471.0,66470.0,0.14772888]
[1718645865605,0.00125773,66471.0,66470.0,1.01234588]
[1718645865818,0.00125773,66471.0,66470.0,1.07254388]
[1718645866024,0.00125773,66471.0,66470.0,1.37343088]
[1718645866440,0.00125773,66471.0,66470.0,1.07254388]
[1718645867286,0.00125773,66471.0,66470.0,1.37343088]
[1718645867525,0.00125773,66471.0,66470.0,1.07254388]
[1718645867733,0.00225773,66471.0,66470.0,0.77965688]
[1718645868289,0.00225773,66471.0,66470.0,1.07254388]
[1718645868290,0.00125773,66471.0,66470.0,1.07254388]
[1718645868698,0.00125773,66471.0,66470.0,0.32032688]
[1718645868902,0.00125773,66471.0,66470.0,0.75665688]
[1718645869109,0.00125773,66471.0,66470.0,0.30532688]
[1718645869306,0.00125773,66471.0,66470.0,0.45576988]
[1718645869522,0.00125773,66471.0,66470.0,0.30532688]
[1718645869716,0.00225773,66471.0,66470.0,0.31232688]
[1718645869962,0.00225773,66471.0,66470.0,0.76365688]
[1718645870315,0.00225773,66471.0,66470.0,1.06454388]
[1718645870517,0.00225773,66471.0,66470.0,1.38043088]
[1718645872187,0.00225773,66471.0,66470.0,2.11771788]
[1718645872389,0.5,66477.0,66476.0,0.56369]
[1718645872587,0.5,66477.0,66476.0,1.41813888]
[1718645872882,0.5,66477.0,66476.0,1.11727888]
[1718645873085,0.5,66477.0,66476.0,1.41813888]
[1718645873944,0.5,66477.0,66476.0,0.26512888]
[1718645874361,0.5,66477.0,66476.0,1.01727888]
[1718645874778,0.5,66477.0,66476.0,1.61899888]
[1718645874980,0.5,66477.0,66476.0,1.31813888]
[1718645875163,0.5,66477.0,66476.0,1.41813888]
[1718645875416,0.5,66477.0,66476.0,1.71899888]
[1718645875626,0.5,66477.0,66476.0,2.03419888]
[1718645875836,0.5,66477.0,66476.0,1.73333888]
[1718645876044,0.5,66477.0,66476.0,1.43247888]
[1718645876247,0.5,66477.0,66476.0,0.41555888]
[1718645876659,0.5,66477.0,66476.0,0.25012888]
[1718645876859,0.5,66477.0,66476.0,0.26512888]
[1718645877077,0.5,66477.0,66476.0,0.41555888]
[1718645877284,0.5,66477.0,66472.0,0.0974]
[1718645877500,0.5,66477.0,66472.0,0.25012888]
[1718645877670,0.5,66477.0,66470.0,0.060198]
[1718645877671,0.5,66477.0,66474.0,0.0974]
[1718645877928,0.5,66477.0,66472.0,0.0974]
[1718645878133,0.5,66477.0,66473.0,0.0974]
[1718645878551,0.5,66477.0,66470.0,0.075198]
[1718645878552,0.5,66477.0,66470.0,0.157598]
[1718645878761,0.5,66477.0,66473.0,0.150436]
[1718645878969,0.5,66477.0,66472.0,0.0974]
[1718645879183,0.5,66477.0,66456.0,0.09420228]
[1718645879184,0.451324,66471.0,66459.0,0.0974]
[1718645879394,0.451324,66471.0,66438.0,0.1793]
[1718645879395,0.2466,66468.0,66438.0,0.1793]
[1718645879594,0.2466,66468.0,66436.0,0.12501551]
[1718645879595,0.2976,66451.0,66446.0,0.45558432]
[1718645879820,0.2976,66451.0,66445.0,0.060217]
[1718645880028,0.2976,66451.0,66421.0,0.469809]
[1718645880235,0.2976,66451.0,66424.0,0.6083132]
[1718645880446,0.2976,66451.0,66444.0,0.301005]
[1718645880673,0.2976,66451.0,66448.0,0.0974]
[1718645880873,0.2976,66451.0,66445.0,0.15272888]
[1718645880874,0.301,66445.0,66430.0,0.07593072]
[1718645881092,0.451528,66441.0,66440.0,0.060226]
[1718645881300,0.301002,66445.0,66440.0,0.060226]
[1718645881513,0.150509,66441.0,66440.0,0.060226]
[1718645881716,0.29049265,66451.0,66435.0,0.0974]
[1718645881936,0.150492,66449.0,66438.0,0.0974]
[1718645882144,0.150489,66450.0,66439.0,0.150513]
[1718645882357,0.29049265,66451.0,66443.0,0.301008]
[1718645882579,0.29049265,66451.0,66441.0,0.0974]
[1718645882821,0.29049265,66451.0,66440.0,0.15272888]
[1718645883046,0.15051,66441.0,66438.0,0.0974]
[1718645883243,0.34039397,66451.0,66429.0,0.210766]
[1718645883244,0.34039397,66451.0,66431.0,0.0974]
[1718645883449,0.301,66445.0,66429.0,0.060231]
[1718645883661,0.301,66445.0,66432.0,0.0974]
[1718645883662,0.150522,66436.0,66432.0,0.0974]
[1718645883915,0.49312285,66451.0,66431.0,0.0974]
[1718645884107,0.301003,66445.0,66429.0,0.060231]
[1718645884318,0.45373188,66445.0,66429.0,0.060231]
[1718645884530,0.903066,66441.0,66429.0,0.060231]
[1718645884734,0.20852054,66441.0,66431.0,0.0974]
[1718645884953,0.20852054,66441.0,66428.0,0.015]
[1718645884954,0.29049265,66451.0,66440.0,0.301023]
[1718645885186,0.37002038,66451.0,66432.0,0.15272888]
[1718645885398,0.15272888,66450.0,66428.0,0.0974]
[1718645885601,0.150503,66444.0,66433.0,0.150526]
[1718645885811,0.15052,66436.0,66431.0,0.001]
[1718645886037,0.15272888,66450.0,66427.0,0.0974]
[1718645886292,0.150529,66433.0,66425.0,0.06023]
[1718645886529,0.451629,66426.0,66425.0,0.06023]
[1718645886948,0.20852054,66436.0,66425.0,0.06023]
[1718645887171,0.20852054,66436.0,66420.0,0.0974]
[1718645887379,0.20852054,66436.0,66413.0,0.07593072]
[1718645887380,0.50658473,66435.0,66413.0,0.0974]
[1718645887585,0.45562888,66435.0,66423.0,0.150548]
[1718645887814,0.45562888,66435.0,66420.0,0.0974]
[1718645888006,0.45562888,66435.0,66404.0,0.310555]
[1718645888007,0.1798,66431.0,66404.0,0.009372]
[1718645888178,0.5770274,66430.0,66413.0,0.45558432]
[1718645888426,0.301074,66429.0,66410.0,0.0974]
[1718645888629,0.301139,66415.0,66410.0,0.0974]
[1718645888832,0.301136,66416.0,66406.0,0.0974]
[1718645889242,0.301125,66418.0,66410.0,0.0974]
[1718645889454,0.04697683,66416.0,66404.0,0.16210088]
[1718645889682,0.150579,66410.0,66406.0,0.0974]
[1718645889907,0.20852054,66421.0,66404.0,0.16210088]
[1718645889908,0.20852054,66421.0,66404.0,0.106772]
[1718645890119,0.20852054,66421.0,66417.0,0.0974]
[1718645890329,0.20852054,66421.0,66416.0,0.0974]
[1718645890595,0.20852054,66421.0,66418.0,0.150561]
[1718645890780,0.428661,66432.0,66431.0,0.150532]
[1718645890781,0.1276,66432.0,66431.0,0.150532]
[1718645890987,0.1727,66439.0,66432.0,0.150529]
[1718645890988,0.50882054,66439.0,66432.0,0.150529]
[1718645891200,0.50882054,66439.0,66428.0,0.0974]
[1718645891397,0.50882054,66439.0,66436.0,0.301041]
[1718645891398,0.20852054,66439.0,66436.0,0.301041]
[1718645891613,0.20852054,66439.0,66438.0,0.1024]
[1718645891809,0.009,66441.0,66438.0,0.1024]
[1718645891810,0.009,66441.0,66438.0,0.25012888]
[1718645892012,0.009,66441.0,66440.0,0.413423]
[1718645892224,0.009,66441.0,66440.0,0.548934]
[1718645892431,0.009,66441.0,66438.0,0.25012888]
[1718645892664,0.009,66441.0,66440.0,0.0974]
[1718645892876,0.009,66441.0,66438.0,0.55116088]
[1718645893082,0.009,66441.0,66440.0,1.01768588]
[1718645893337,0.009,66441.0,66440.0,0.548934]
[1718645893526,0.009,66441.0,66440.0,0.262911]
[1718645893729,0.009,66441.0,66440.0,0.849957]
[1718645894160,0.009,66441.0,66440.0,0.864957]
[1718645894636,0.009,66441.0,66440.0,0.262911]
[1718645894841,0.009,66441.0,66440.0,0.1124]
[1718645895013,0.009,66441.0,66440.0,0.864957]
[1718645895247,0.009,66441.0,66440.0,1.01768588]
[1718645895618,0.009,66441.0,66440.0,1.31870888]
[1718645896580,0.009,66441.0,66440.0,1.01768588]
[1718645897001,0.009,66441.0,66440.0,1.31870888]
[1718645897208,0.00985,66441.0,66440.0,1.31870888]
[1718645897618,0.00985,66441.0,66440.0,0.71666288]
[1718645898099,0.00985,66441.0,66440.0,1.01768588]
[1718645898508,0.00985,66441.0,66440.0,0.71666288]
[1718645898710,0.00985,66441.0,66440.0,1.01768588]
[1718645899151,0.00985,66441.0,66440.0,1.62973188]
[1718645899361,0.00985,66441.0,66440.0,1.31870888]
[1718645899778,0.00985,66441.0,66440.0,2.82870888]
[1718645900215,0.00985,66441.0,66440.0,3.12973188]
[1718645900487,0.00985,66441.0,66440.0,2.82870888]
[1718645900768,0.00985,66441.0,66440.0,3.43713188]
[1718645900976,0.1276,66475.0,66467.0,0.0974]
[1718645901187,0.1276,66475.0,66468.0,0.0974]
[1718645901188,0.45558432,66474.0,66468.0,0.0974]
[1718645901404,0.1276,66475.0,66473.0,0.0974]
[1718645901783,0.1276,66475.0,66470.0,0.01265712]
[1718645901784,0.1276,66475.0,66471.0,0.30088]
[1718645902061,0.22865769,66475.0,66463.0,0.01265712]
[1718645902269,0.22865769,66475.0,66464.0,0.300912]
[1718645902484,0.22865769,66475.0,66466.0,0.150452]
[1718645902688,0.22865769,66475.0,66467.0,0.150448]
[1718645902938,0.1276,66475.0,66467.0,0.150449]
[1718645903161,0.1276,66475.0,66467.0,0.150448]
[1718645903437,0.1276,66475.0,66466.0,0.300903]
[1718645903693,0.28032888,66475.0,66456.0,0.01265712]
[1718645903951,0.28032888,66475.0,66458.0,0.01265712]
[1718645903952,0.150455,66465.0,66458.0,0.01265712]
[1718645904210,0.150449,66468.0,66458.0,0.16312712]
[1718645904455,0.150449,66468.0,66447.0,0.436989]
[1718645904456,0.52722888,66475.0,66463.0,0.300917]
[1718645904735,0.150439,66472.0,66462.0,0.150461]
[1718645904972,0.1276,66475.0,66470.0,0.150443]
[1718645905213,0.1276,66475.0,66471.0,0.150439]
[1718645905734,0.1276,66475.0,66463.0,0.01265712]
[1718645905953,0.67445631,66477.0,66463.0,0.01265712]
[1718645905954,0.50005631,66477.0,66476.0,0.15043]
[1718645906193,0.50005631,66477.0,66476.0,0.45129]
[1718645906496,0.50005631,66477.0,66471.0,0.30088]
[1718645906751,0.50005631,66477.0,66476.0,0.15043]
[1718645907000,0.50005631,66477.0,66476.0,1.667056]
[1718645907279,0.16255631,66477.0,66476.0,1.853056]
[1718645907503,0.16255631,66477.0,66476.0,1.863056]
[1718645908257,0.16255631,66477.0,66476.0,2.165916]
[1718645908497,0.16255631,66477.0,66476.0,1.863056]
[1718645908498,3.1e-07,66477.0,66476.0,1.863056]
[1718645908736,3.1e-07,66477.0,66476.0,1.965056]
[1718645909244,3.1e-07,66477.0,66476.0,2.265916]
[1718645909561,0.0005006,66482.0,66481.0,1.37642312]
[1718645909796,0.0005006,66482.0,66481.0,2.241289]
[1718645910027,0.0005006,66482.0,66481.0,1.940452]
[1718645910267,0.0005006,66482.0,66481.0,1.629615]
[1718645910745,0.0005006,66482.0,66481.0,1.930452]
[1718645911228,0.0005006,66482.0,66481.0,1.629615]
[1718645911708,0.0005006,66482.0,66481.0,1.63146113]
[1718645913699,0.008715,66489.0,66486.0,0.3103]
[1718645913953,0.008715,66489.0,66488.0,1.44221484]
[1718645914190,0.008715,66489.0,66488.0,1.218207]
[1718645915382,0.008715,66489.0,66488.0,1.519013]
[1718645915646,0.008715,66489.0,66488.0,1.654413]
[1718645915896,0.008715,66489.0,66488.0,1.353607]
[1718645918831,0.00853,66494.0,66488.0,1.353607]
[1718645918832,0.00853,66494.0,66489.0,0.3206]
[1718645919069,0.00853,66494.0,66493.0,1.59483972]
[1718645919333,0.00853,66494.0,66493.0,1.218126]
[1718645919571,0.00853,66494.0,66493.0,0.917343]
[1718645919829,0.00853,66494.0,66493.0,1.518909]
[1718645920318,0.00853,66494.0,66493.0,1.218126]
[1718645921270,0.00853,66494.0,66493.0,0.90468588]
[1718645921509,0.00853,66494.0,66493.0,1.218126]
[1718645921766,0.00853,66494.0,66493.0,0.917343]
[1718645922268,0.00853,66494.0,66490.0,0.150398]
[1718645922479,0.00853,66494.0,66488.0,0.300804]
[1718645922480,0.00853,66494.0,66491.0,0.07593072]
[1718645922726,0.00853,66494.0,66493.0,0.150391]
[1718645922929,0.00853,66494.0,66493.0,0.315777]
[1718645923136,0.00853,66494.0,66493.0,0.61656]
[1718645923357,0.00853,66494.0,66493.0,1.218126]
[1718645923572,0.00853,66494.0,66493.0,0.90468588]
[1718645923786,0.00853,66494.0,66488.0,0.01265712]
[1718645923997,0.00853,66494.0,66489.0,0.15272888]
[1718645924234,0.00853,66494.0,66493.0,0.451174]
[1718645925023,0.00853,66494.0,66493.0,0.751957]
[1718645925263,0.00853,66494.0,66493.0,0.90468588]
[1718645925731,0.00853,66494.0,66493.0,0.751957]
[1718645925939,0.00853,66494.0,66484.0,0.01265712]
[1718645926168,0.00853,66494.0,66485.0,0.15272888]
[1718645926398,0.00853,66494.0,66487.0,0.01265712]
[1718645926616,0.00853,66494.0,66493.0,0.451174]
[1718645926789,0.00853,66494.0,66493.0,0.150391]
[1718645927258,0.00853,66494.0,66488.0,0.15272888]
[1718645927521,0.00853,66494.0,66488.0,0.165386]
[1718645927742,0.00853,66494.0,66492.0,0.150393]
[1718645927978,0.300798,66490.0,66477.0,0.01265712]
[1718645928205,0.00853,66494.0,66482.0,0.15272888]
[1718645928477,0.00853,66494.0,66486.0,0.300813]
[1718645928710,0.00853,66494.0,66482.0,0.165386]
[1718645928944,0.00853,66494.0,66486.0,0.150406]
[1718645929224,0.00853,66494.0,66481.0,0.00184613]
[1718645929225,0.3194,66493.0,66481.0,0.00184613]
[1718645929455,0.150398,66490.0,66481.0,0.00184613]
[1718645929694,0.3194,66493.0,66481.0,0.30268113]
[1718645929974,0.150396,66491.0,66481.0,0.00184613]
[1718645930218,0.3194,66493.0,66481.0,0.00184613]
[1718645930446,0.3194,66493.0,66483.0,0.150414]
[1718645930677,0.3194,66493.0,66481.0,0.00184613]
[1718645930678,0.3194,66493.0,66485.0,0.300819]
[1718645930922,0.3194,66493.0,66492.0,0.150394]
[1718645931182,0.3194,66493.0,66487.0,0.300806]
[1718645931414,0.3194,66493.0,66481.0,0.00184613]
[1718645931651,0.3194,66493.0,66485.0,0.08858784]
[1718645931940,0.3194,66493.0,66492.0,0.451182]
[1718645932177,0.3194,66493.0,66492.0,0.75197]
[1718645932455,0.3194,66493.0,66478.0,0.300849]
[1718645932456,0.482894,66492.0,66478.0,0.300849]
[1718645932677,0.482894,66492.0,66463.0,0.31357312]
[1718645932678,0.3278,66482.0,66463.0,0.31357312]
[1718645932915,1.09123084,66482.0,66463.0,0.01265712]
[1718645933152,0.300844,66480.0,66463.0,0.01265712]
[1718645933385,0.300873,66474.0,66464.0,0.6083132]
[1718645933617,0.40353129,66480.0,66464.0,0.6083132]
[1718645933618,0.300851,66478.0,66464.0,0.15272888]
[1718645933872,0.300844,66480.0,66464.0,0.15272888]
[1718645933873,0.150437,66473.0,66464.0,0.15272888]
[1718645934096,0.150442,66471.0,66464.0,0.15272888]
[1718645934319,0.150442,66471.0,66459.0,0.46405712]
[1718645934320,0.00234288,66478.0,66459.0,0.01265712]
[1718645934533,0.150444,66470.0,66460.0,0.15272888]
[1718645934781,0.00123851,66478.0,66460.0,0.15272888]
[1718645934782,0.20975905,66478.0,66460.0,0.15272888]
[1718645934984,0.08340725,66477.0,66462.0,0.300923]
[1718645935199,0.150431,66476.0,66463.0,0.01376149]
[1718645935402,0.150437,66473.0,66463.0,0.01376149]
[1718645935830,0.50937354,66478.0,66470.0,0.01376149]
[1718645935831,0.20852054,66478.0,66470.0,0.01376149]
[1718645936055,0.24813851,66488.0,66486.0,0.300815]
[1718645936056,0.1815,66488.0,66486.0,0.300815]
[1718645936315,0.45558432,66487.0,66473.0,0.01376149]
[1718645936538,0.1815,66488.0,66487.0,0.150405]
[1718645936797,0.1385,66493.0,66474.0,0.15272888]